fUST/lending_fUST_20240909
["ID","MTS","AMOUNT","RATE_DAILY","PERIOD"]
[337609458,1725892030034,-500.0,0.00035,7]
[337609459,1725892030057,-500.0,0.00035,7]
[337609460,1725892030081,-500.0,0.00035,7]
[337609461,1725892030103,-500.0,0.00035,7]
[337609462,1725892030128,-500.0,0.00035,7]
[337609463,1725892030161,-500.0,0.00035,7]
[337609464,1725892030187,-500.0,0.00035,7]
[337609465,1725892030209,-500.0,0.00035,7]
[337609466,1725892030242,-500.0,0.00035,7]
[337609467,1725892030270,-500.0,0.00035,7]
[337609468,1725892030296,-500.0,0.00035,7]
[337609469,1725892030320,-500.0,0.00035,7]
[337609470,1725892030345,-500.0,0.00035,7]
[337609471,1725892030370,-500.0,0.00035,7]
[337609472,1725892030400,-500.0,0.00035,7]
[337609473,1725892030425,-500.0,0.00035,7]
[337609474,1725892030448,-500.0,0.00035,7]
[337609475,1725892030472,-500.0,0.00035,7]
[337609476,1725892030497,-500.0,0.00035,7]
[337609477,1725892030523,-500.0,0.00035,7]
[337609478,1725892030552,-500.0,0.00035,7]
[337609479,1725892030576,-260.05412962,0.00035,7]
[337609480,1725892030600,-500.0,0.00035,7]
[337609481,1725892030628,-500.0,0.00035,7]
[337609482,1725892030654,-500.0,0.00035,7]
[337609483,1725892030680,-500.0,0.00035,7]
[337609484,1725892030705,-449.96420742,0.00035,7]
[337609485,1725892030729,-500.0,0.00035,7]
[337609486,1725892030754,-500.0,0.00035,7]
[337609487,1725892030778,-500.0,0.00035,7]
[337609488,1725892030803,-500.0,0.00035,7]
[337609489,1725892030828,-500.0,0.00035,7]
[337609490,1725892030853,-500.0,0.00035,7]
[337609491,1725892030893,-500.0,0.00035,7]
[337609492,1725892030919,-500.0,0.00035,7]
[337609493,1725892030943,-500.0,0.00035,7]
[337609494,1725892030967,-500.0,0.00035,7]
[337609495,1725892030991,-500.0,0.00035,7]
[337609496,1725892031020,-500.0,0.00035,7]
[337609497,1725892031045,-1235.89136034,0.00035,7]
[337609498,1725892031070,-1235.89136034,0.00035,7]
[337609499,1725892031095,-1235.89136034,0.00035,7]
[337609500,1725892031119,-1235.89136034,0.00035,7]
[337609501,1725892031148,-1235.89136034,0.00035,7]
[337609502,1725892031173,-1235.89136034,0.00035,7]
[337609503,1725892031198,-1235.89136034,0.00035,7]
[337609504,1725892031223,-1235.89136034,0.00035,7]
[337609505,1725892031250,-1235.89136034,0.00035,7]
[337609506,1725892031276,-1235.89136034,0.00035,7]
[337609507,1725892031301,-1235.89136034,0.00035,7]
[337609508,1725892031325,-1235.89136034,0.00035,7]
[337609509,1725892031350,-1235.89136034,0.00035,7]
[337609510,1725892031375,-1235.89136034,0.00035,7]
[337609511,1725892031403,-1235.89136034,0.00035,7]
[337609512,1725892031428,-1235.89136034,0.00035,7]
[337609513,1725892031454,-1235.89136034,0.00035,7]
[337609514,1725892031481,-1235.89136034,0.00035,7]
[337609515,1725892031509,-1235.89136034,0.00035,7]
[337609516,1725892031536,-1235.89136034,0.00035,7]
[337609517,1725892031566,-1235.89136034,0.00035,7]
[337609518,1725892031592,-1235.89136034,0.00035,7]
[337609519,1725892031617,-1235.89136034,0.00035,7]
[337609520,1725892031644,-1235.89136034,0.00035,7]
[337609521,1725892031670,-1235.89136034,0.00035,7]
[337609522,1725892031695,-1235.89136034,0.00035,7]
[337609523,1725892031721,-1235.89136034,0.00035,7]
[337609524,1725892031747,-1235.89136034,0.00035,7]
[337609525,1725892031772,-1235.89136034,0.00035,7]
[337609526,1725892031798,-1235.89136034,0.00035,7]
[337609527,1725892031824,-1235.89136034,0.00035,7]
[337609528,1725892031850,-1235.89136034,0.00035,7]
[337609529,1725892031881,-1235.89136034,0.00035,7]
[337609530,1725892031907,-1235.89136034,0.00035,7]
[337609531,1725892031933,-1235.89136034,0.00035,7]
[337609532,1725892031958,-1235.89136034,0.00035,7]
[337609533,1725892031980,-306.11085663,0.00035001,7]
[337609534,1725892032002,-220.78718152,0.00035001,7]
[337609535,1725892032026,-500.0,0.00035001,7]
[337609536,1725892032049,-500.0,0.00035001,7]
[337609537,1725892032074,-591.61360392,0.00035001,7]
[337609538,1725892032099,-405031.471083,0.00035002,5]
[337609539,1725892032122,-39791.85224488,0.00035012,5]
[337609541,1725892048109,-322.53,0.0003499,3]
[337609542,1725892048134,-800.23965582,0.00035,7]
[337609543,1725892048158,-800.23965582,0.00035,7]
[337609544,1725892048182,-800.23965582,0.00035,7]
[337609545,1725892048205,-800.23965582,0.00035,7]
[337609546,1725892048229,-800.23965582,0.00035,7]
[337609547,1725892048252,-800.23965582,0.00035,7]
[337609548,1725892048275,-800.23965582,0.00035,7]
[337609549,1725892048296,-800.23965582,0.00035,7]
[337609550,1725892048320,-800.23965582,0.00035,7]
[337609551,1725892048343,-800.23965582,0.00035,7]
[337609552,1725892048365,-800.23965582,0.00035,7]
[337609553,1725892048390,-800.23965582,0.00035,7]
[337609554,1725892048411,-800.23965582,0.00035,7]
[337609555,1725892048434,-800.23965582,0.00035,7]
[337609556,1725892048457,-800.23965582,0.00035,7]
[337609557,1725892048479,-800.23965582,0.00035,7]
[337609558,1725892048501,-800.23965582,0.00035,7]
[337609559,1725892048523,-800.23965582,0.00035,7]
[337609560,1725892048546,-800.23965582,0.00035,7]
[337609561,1725892048570,-800.23965582,0.00035,7]
[337609562,1725892048591,-268.77,0.00035002,3]
[337609563,1725892048611,-214.0,0.00035012,2]
[337609564,1725892048633,-55142.9315096,0.00035012,5]
[337609570,1725892114137,6417.2408945,0.00019,2]
[337609571,1725892115496,187.03717694,0.000191,12]
[337609572,1725892118507,953.1548965,0.00025,7]
[337609573,1725892119566,2594.45171571,0.00015,7]
[337609574,1725892119596,2221.87259665,0.00015,7]
[337609575,1725892121259,1254.12740335,0.00014,4]
[337609576,1725892121286,1494.0,0.00014,4]
[337609577,1725892121311,3000.0,0.00014,4]
[337609578,1725892121338,14413.51713585,0.00014,4]
[337609579,1725892121415,1970.12339736,0.00028,120]
[337609580,1725892122299,10173.54274879,0.00021,2]
[337609581,1725892124002,246.27344936,0.0002509,2]
[337609582,1725892124027,24215.666668,0.0002509,2]
[337609583,1725892124054,7000.0,0.0002509,2]
[337609584,1725892124080,25000.0,0.0002509,2]
[337609585,1725892124115,22244.84315216,0.00020377,2]
[337609586,1725892124142,4972.85519466,0.00020377,2]
[337609587,1725892125259,5795.05775269,0.00014,2]
[337609588,1725892125296,112103.88973049,0.0002,2]
[337609589,1725892125601,11789.91886531,0.00025,2]
[337609590,1725892125951,31434.74594775,0.0001999,2]
[337609625,1725892232349,-300.0,0.00025089,2]
[337609627,1725892232358,-291.25,0.0002509,2]
[337609644,1725892232582,-7994.780514,0.0002509,2]
[337609664,1725892238346,-57347.45021711,0.0002509,2]
[337609666,1725892238357,-500.0,0.00025787,2]
[337609669,1725892238368,-500.0,0.00025787,2]
[337609671,1725892238378,-278.2619182,0.00025787,2]
[337609673,1725892238388,-500.0,0.00025787,2]
[337609675,1725892238398,-500.0,0.00025787,2]
[337609677,1725892238408,-500.0,0.00025787,2]
[337609679,1725892238418,-500.0,0.00025787,2]
[337609681,1725892238429,-500.0,0.00025787,2]
[337609683,1725892238440,-500.0,0.00025787,2]
[337609685,1725892238450,-500.0,0.00025787,2]
[337609687,1725892238460,-500.0,0.00025787,2]
[337609689,1725892238470,-500.0,0.00025787,2]
[337609692,1725892238480,-500.0,0.00025787,2]
[337609694,1725892238490,-500.0,0.00025787,2]
[337609696,1725892238500,-500.0,0.00025787,2]
[337609698,1725892238511,-500.0,0.00025787,2]
[337609700,1725892238527,-500.0,0.00025787,2]
[337609702,1725892238536,-500.0,0.00025787,2]
[337609704,1725892238546,-500.0,0.00025787,2]
[337609706,1725892238557,-500.0,0.00025787,2]
[337609708,1725892238568,-500.0,0.00025787,2]
[337609710,1725892238578,-24900.0,0.00025788,2]
[337609712,1725892238588,-1017.53047947,0.000269,2]
[337609714,1725892238598,-2530.36799528,0.00027,2]
[337609716,1725892238609,-150.0,0.00027197,2]
[337609718,1725892238618,-370.14,0.0002749,3]
[337609720,1725892238628,-223.98,0.0002749,3]
[337609722,1725892238638,-186.65,0.0002749,3]
[337609725,1725892238648,-155.54,0.0002749,3]
[337609727,1725892238658,-23958.85295207,0.000275,2]
[337609729,1725892238668,-420.0,0.00027598,2]
[337609731,1725892238678,-1017.53047944,0.00028679,2]
[337609733,1725892238687,-1500.0,0.0003,2]
[337609735,1725892238697,-220.90674123,0.0003,120]
[337609737,1725892238708,-428.0,0.0003,2]
[337609739,1725892238718,-500.0,0.00030137,2]
[337609741,1725892238728,-251.11712551,0.00030137,2]
[337609743,1725892238738,-587.0,0.00030358,2]
[337609745,1725892238748,-1017.53047944,0.00030458,2]
[337609747,1725892238757,-186.39360758,0.0003065,2]
[337609749,1725892238771,-268.2317294,0.00031333,2]
[337609751,1725892238781,-28865.07030813,0.0003212,10]
[337609753,1725892238791,-1017.53047944,0.00032237,2]
[337609755,1725892238800,-150.0,0.00033,48]
[337609758,1725892238811,-823.0,0.00033393,2]
[337609760,1725892238821,-529.1127158,0.00034,5]
[337609762,1725892238831,-1017.53047944,0.00034015,2]
[337609764,1725892238841,-706.918206,0.0003477,2]
[337609766,1725892238850,-800.37353916,0.00034902,2]
[337609768,1725892238860,-214.27759964,0.00035001,7]
[337609770,1725892238870,-154.55102706,0.00035001,7]
[337609772,1725892238880,-614.12952275,0.00035001,7]
[337609774,1725892238890,-500.0,0.00035001,7]
[337609776,1725892238900,-253279.2379392,0.00035002,5]
[337609778,1725892238914,-194702.4555928,0.00035002,5]
[337609781,1725892238933,-15188.6801654,0.00035002,5]
[337609783,1725892238946,-11391.5101241,0.00035005,5]
[337609786,1725892238956,-3797.17004136,0.00035037,5]
[337609787,1725892238966,-35043.93506212,0.00035047,2]
[337609789,1725892238977,-1000.0,0.00035205,60]
[337609791,1725892238987,-153.0,0.00035205,2]
[337609793,1725892238999,-153.0,0.00035205,2]
[337609796,1725892239014,-153.0,0.00035205,2]
[337609798,1725892239024,-800.37353908,0.00035488,2]
[337609800,1725892239034,-4953.08148448,0.00035548,2]
[337609802,1725892239044,-338.13317802,0.00035594,7]
[337609804,1725892239054,-1000.0,0.000356,60]
[337609806,1725892239064,-3000.0,0.00035604,14]
[337609808,1725892239074,-3000.0,0.00035604,14]
[337609810,1725892239084,-1238.58818138,0.00035604,14]
[337609812,1725892239094,-45566.0404963,0.00035606,5]
[337609814,1725892239104,-500.0,0.00035616,14]
[337609816,1725892239114,-500.0,0.00035616,120]
[337609818,1725892239123,-500.0,0.00035616,120]
[337609820,1725892239133,-500.0,0.00035616,14]
[337609822,1725892239142,-500.0,0.00035616,14]
[337609824,1725892239151,-500.0,0.00035616,14]
[337609826,1725892239161,-500.0,0.00035616,14]
[337609828,1725892239170,-500.0,0.00035616,14]
[337609830,1725892239179,-500.0,0.00035616,14]
[337609832,1725892239189,-151.0,0.00035616,14]
[337609834,1725892239198,-500.0,0.00035616,14]
[337609836,1725892239208,-500.0,0.00035616,14]
[337609838,1725892239218,-717.2,0.00035616,14]
[337609840,1725892239227,-500.0,0.00035616,14]
[337609842,1725892239236,-500.0,0.00035616,14]
[337609844,1725892239246,-298.74964935,0.00035616,14]
[337609846,1725892239255,-500.0,0.00035616,14]
[337609848,1725892239267,-495.21340236,0.00035616,14]
[337609850,1725892239277,-500.0,0.00035616,14]
[337609852,1725892239286,-500.0,0.00035616,14]
[337609854,1725892239295,-500.0,0.00035616,14]
[337609856,1725892239305,-500.0,0.00035616,2]
[337609858,1725892239314,-500.0,0.00035616,14]
[337609860,1725892239324,-500.0,0.00035616,14]
[337609862,1725892239333,-426.34546258,0.00035616,14]
[337609864,1725892239342,-500.0,0.00035616,14]
[337609866,1725892239351,-500.0,0.00035616,14]
[337609868,1725892239361,-500.0,0.00035616,14]
[337609870,1725892239370,-500.0,0.00035616,14]
[337609872,1725892239379,-570.0,0.00035616,14]
[337609874,1725892239389,-500.0,0.00035616,14]
[337609876,1725892239398,-500.0,0.00035616,14]
[337609878,1725892239407,-500.0,0.00035616,14]
[337609880,1725892239417,-500.0,0.00035616,14]
[337609882,1725892239426,-500.0,0.00035616,14]
[337609884,1725892239436,-500.0,0.00035616,14]
[337609886,1725892239445,-500.0,0.00035616,14]
[337609889,1725892239456,-500.0,0.00035616,14]
[337609891,1725892239465,-2324.25,0.00035616,14]
[337609893,1725892239475,-500.0,0.00035616,14]
[337609895,1725892239484,-511.68,0.00035616,14]
[337609896,1725892239493,-500.0,0.00035616,14]
[337609898,1725892239503,-500.0,0.00035616,14]
[337609900,1725892239514,-500.0,0.00035616,14]
[337609902,1725892239525,-500.0,0.00035616,14]
[337609904,1725892239535,-536.8,0.00035616,14]
[337609906,1725892239545,-414.39717218,0.00035616,14]
[337609909,1725892239558,-512.76368327,0.00035616,14]
[337609911,1725892239568,-500.0,0.00035616,14]
[337609913,1725892239578,-274.81869451,0.00035616,14]
[337609915,1725892239588,-151.0,0.00035616,14]
[337609917,1725892239598,-151.0,0.00035616,14]
[337609919,1725892239608,-500.0,0.00035616,14]
[337609921,1725892239618,-299.96,0.00035616,14]
[337609923,1725892239629,-500.0,0.00035616,14]
[337609926,1725892239640,-500.0,0.00035616,14]
[337609928,1725892239650,-677.64,0.00035616,14]
[337609930,1725892239661,-746.44,0.00035616,14]
[337609932,1725892239672,-729.79,0.00035616,14]
[337609934,1725892239682,-500.0,0.00035616,14]
[337609936,1725892239692,-659.95,0.00035616,14]
[337609938,1725892239702,-500.0,0.00035616,14]
[337609940,1725892239712,-500.0,0.00035616,14]
[337609942,1725892239721,-500.0,0.00035616,14]
[337609944,1725892239731,-500.0,0.00035616,14]
[337609946,1725892239741,-1548.59,0.00035616,14]
[337609948,1725892239751,-500.0,0.00035616,14]
[337609951,1725892239761,-713.91,0.00035616,14]
[337609953,1725892239775,-500.0,0.00035616,14]
[337609955,1725892239784,-503.58662487,0.00035616,14]
[337609957,1725892239795,-503.27021417,0.00035616,14]
[337609959,1725892239804,-500.0,0.00035616,14]
[337609961,1725892239814,-500.0,0.00035616,14]
[337609963,1725892239824,-584.09,0.00035616,14]
[337609965,1725892239833,-500.0,0.00035616,14]
[337609967,1725892239843,-500.0,0.00035616,14]
[337609969,1725892239853,-917.1,0.00035616,14]
[337609971,1725892239863,-643.50107225,0.00035616,14]
[337609973,1725892239875,-500.0,0.00035616,14]
[337609975,1725892239885,-500.0,0.00035616,14]
[337609977,1725892239895,-151.0,0.00035616,14]
[337609979,1725892239904,-151.0,0.00035616,14]
[337609981,1725892239914,-500.0,0.00035616,14]
[337609984,1725892239926,-500.0,0.00035616,14]
[337609986,1725892239937,-500.0,0.00035616,14]
[337609988,1725892239946,-500.0,0.00035616,14]
[337609990,1725892239955,-500.0,0.00035616,14]
[337609992,1725892239966,-500.0,0.00035616,14]
[337609995,1725892239976,-501.69705807,0.00035616,14]
[337609997,1725892239985,-500.0,0.00035616,14]
[337609999,1725892239995,-500.0,0.00035616,14]
[337610001,1725892240006,-500.0,0.00035616,14]
[337610003,1725892240017,-500.0,0.00035616,14]
[337610005,1725892240026,-1178.91,0.00035616,14]
[337610007,1725892240037,-500.0,0.00035616,14]
[337610009,1725892240046,-960.65,0.00035616,14]
[337610011,1725892240056,-686.68,0.00035616,7]
[337610013,1725892240067,-500.0,0.00035616,14]
[337610015,1725892240077,-386.93385966,0.00035616,14]
[337610017,1725892240087,-500.0,0.00035616,14]
[337610019,1725892240097,-500.0,0.00035616,14]
[337610021,1725892240107,-754.15,0.00035616,14]
[337610023,1725892240118,-2524.25,0.00035616,14]
[337610026,1725892240128,-500.0,0.00035616,7]
[337610028,1725892240138,-500.0,0.00035616,14]
[337610030,1725892240148,-198.688948,0.00035616,2]
[337610032,1725892240158,-500.0,0.00035616,14]
[337610034,1725892240168,-500.0,0.00035616,14]
[337610036,1725892240178,-500.0,0.00035616,14]
[337610038,1725892240188,-500.0,0.00035616,2]
[337610040,1725892240198,-500.0,0.00035616,14]
[337610042,1725892240208,-500.0,0.00035616,14]
[337610044,1725892240218,-501.03545442,0.00035616,14]
[337610046,1725892240228,-734.26,0.00035616,14]
[337610048,1725892240238,-500.0,0.00035616,14]
[337610050,1725892240248,-500.0,0.00035616,14]
[337610052,1725892240257,-500.0,0.00035616,14]
[337610054,1725892240271,-500.0,0.00035616,14]
[337610056,1725892240287,-500.0,0.00035616,14]
[337610058,1725892240297,-500.0,0.00035616,14]
[337610060,1725892240307,-500.0,0.00035616,14]
[337610062,1725892240317,-694.96,0.00035616,14]
[337610064,1725892240327,-500.0,0.00035616,14]
[337610066,1725892240336,-245.978072,0.00035616,14]
[337610068,1725892240345,-245.978072,0.00035616,14]
[337610071,1725892240355,-357.9401846,0.00035616,14]
[337610073,1725892240365,-500.0,0.00035616,14]
[337610075,1725892240375,-500.0,0.00035616,14]
[337610077,1725892240385,-336.54316478,0.00035616,14]
[337610079,1725892240395,-500.0,0.00035616,14]
[337610081,1725892240404,-216.81555469,0.00035616,14]
[337610083,1725892240414,-500.0,0.00035616,14]
[337610085,1725892240424,-500.0,0.00035616,14]
[337610087,1725892240433,-500.0,0.00035616,14]
[337610089,1725892240442,-500.0,0.00035616,14]
[337610091,1725892240452,-500.0,0.00035616,14]
[337610093,1725892240461,-500.0,0.00035616,14]
[337610096,1725892240477,-500.0,0.00035616,14]
[337610098,1725892240491,-221.07170898,0.00035616,14]
[337610102,1725892240502,-500.0,0.00035616,14]
[337610105,1725892240512,-500.0,0.00035616,14]
[337610107,1725892240528,-500.0,0.00035616,14]
[337610110,1725892240538,-1569.38,0.00035616,14]
[337610111,1725892240548,-500.0,0.00035616,14]
[337610112,1725892240558,-500.0,0.00035616,14]
[337610113,1725892240568,-151.0,0.00035616,14]
[337610114,1725892240579,-151.0,0.00035616,14]
[337610115,1725892240588,-500.0,0.00035616,14]
[337610116,1725892240599,-500.0,0.00035616,14]
[337610117,1725892240609,-500.0,0.00035616,14]
[337610118,1725892240619,-500.0,0.00035616,14]
[337610119,1725892240630,-501.62178188,0.00035616,14]
[337610120,1725892240640,-500.0,0.00035616,14]
[337610121,1725892240650,-500.0,0.00035616,14]
[337610122,1725892240662,-838.17,0.00035616,14]
[337610123,1725892240677,-500.0,0.00035616,14]
[337610124,1725892240687,-500.0,0.00035616,14]
[337610125,1725892240698,-1553.21,0.00035616,14]
[337610126,1725892240708,-500.0,0.00035616,14]
[337610127,1725892240718,-500.0,0.00035616,14]
[337610128,1725892240728,-500.0,0.00035616,14]
[337610129,1725892240740,-502.1513624,0.00035616,14]
[337610130,1725892240751,-500.0,0.00035616,14]
[337610131,1725892240761,-500.0,0.00035616,14]
[337610132,1725892240776,-500.0,0.00035616,14]
[337610133,1725892240786,-501.74844636,0.00035616,14]
[337610135,1725892240796,-500.0,0.00035616,14]
[337610136,1725892240806,-500.0,0.00035616,14]
[337610137,1725892240816,-500.0,0.00035616,14]
[337610138,1725892240826,-500.0,0.00035616,14]
[337610140,1725892240836,-1249.44,0.00035616,14]
[337610143,1725892240845,-500.0,0.00035616,14]
[337610145,1725892240856,-500.0,0.00035616,14]
[337610147,1725892240866,-500.0,0.00035616,14]
[337610149,1725892240876,-500.0,0.00035616,14]
[337610151,1725892240886,-500.0,0.00035616,14]
[337610153,1725892240897,-500.0,0.00035616,14]
[337610155,1725892240907,-500.0,0.00035616,14]
[337610157,1725892240917,-500.0,0.00035616,14]
[337610159,1725892240930,-500.0,0.00035616,14]
[337610161,1725892240943,-500.0,0.00035616,14]
[337610163,1725892240952,-802.26,0.00035616,14]
[337610165,1725892240962,-500.0,0.00035616,14]
[337610167,1725892240973,-1381.29,0.00035616,14]
[337610170,1725892240984,-500.0,0.00035616,14]
[337610172,1725892240994,-776.34,0.00035616,14]
[337610174,1725892241006,-536.06,0.00035616,14]
[337610176,1725892241021,-500.0,0.00035616,14]
[337610178,1725892241030,-290.23,0.00035616,7]
[337610180,1725892241040,-709.63,0.00035616,14]
[337610182,1725892241050,-616.38526506,0.00035616,14]
[337610184,1725892241060,-850.98,0.00035616,14]
[337610186,1725892241071,-502.66399721,0.00035616,14]
[337610188,1725892241081,-500.0,0.00035616,14]
[337610190,1725892241091,-500.0,0.00035616,14]
[337610192,1725892241100,-500.0,0.00035616,14]
[337610194,1725892241110,-500.0,0.00035616,14]
[337610196,1725892241119,-500.0,0.00035616,14]
[337610198,1725892241130,-500.0,0.00035616,14]
[337610200,1725892241139,-500.0,0.00035616,14]
[337610202,1725892241149,-1535.76,0.00035616,14]
[337610204,1725892241159,-500.0,0.00035616,14]
[337610206,1725892241168,-500.0,0.00035616,14]
[337610208,1725892241178,-593.61,0.00035616,14]
[337610210,1725892241188,-2077.09,0.00035616,14]
[337610212,1725892241197,-500.0,0.00035616,14]
[337610214,1725892241207,-151.0,0.00035616,14]
[337610216,1725892241216,-500.0,0.00035616,14]
[337610219,1725892241226,-500.0,0.00035616,14]
[337610221,1725892241236,-500.0,0.00035616,14]
[337610223,1725892241245,-500.0,0.00035616,14]
[337610225,1725892241255,-500.0,0.00035616,2]
[337610227,1725892241270,-500.0,0.00035616,14]
[337610229,1725892241279,-502.17225633,0.00035616,14]
[337610231,1725892241289,-500.0,0.00035616,14]
[337610233,1725892241299,-500.0,0.00035616,14]
[337610235,1725892241308,-628.42,0.00035616,14]
[337610237,1725892241318,-500.0,0.00035616,14]
[337610239,1725892241328,-500.0,0.00035616,14]
[337610241,1725892241337,-500.0,0.00035616,14]
[337610243,1725892241348,-614.6366872,0.00035616,14]
[337610245,1725892241358,-500.0,0.00035616,14]
[337610247,1725892241368,-500.0,0.00035616,14]
[337610249,1725892241378,-500.0,0.00035616,14]
[337610252,1725892241388,-939.69,0.00035616,14]
[337610254,1725892241397,-893.69,0.00035616,14]
[337610256,1725892241407,-500.0,0.00035616,14]
[337610258,1725892241417,-500.0,0.00035616,14]
[337610260,1725892241426,-151.0,0.00035616,14]
[337610262,1725892241436,-166.450216,0.00035616,14]
[337610264,1725892241446,-500.0,0.00035616,14]
[337610266,1725892241455,-151.0,0.00035616,14]
[337610268,1725892241465,-166.450216,0.00035616,14]
[337610270,1725892241475,-500.0,0.00035616,14]
[337610272,1725892241484,-500.0,0.00035616,14]
[337610274,1725892241494,-500.0,0.00035616,14]
[337610276,1725892241504,-500.0,0.00035616,14]
[337610278,1725892241520,-500.0,0.00035616,14]
[337610281,1725892241530,-500.0,0.00035616,14]
[337610283,1725892241541,-500.0,0.00035616,14]
[337610285,1725892241553,-500.0,0.00035616,14]
[337610287,1725892241568,-500.0,0.00035616,14]
[337610289,1725892241578,-2033.86,0.00035616,14]
[337610292,1725892241589,-500.0,0.00035616,14]
[337610294,1725892241600,-500.0,0.00035616,14]
[337610296,1725892241610,-286.40207011,0.00035616,14]
[337610298,1725892241620,-500.0,0.00035616,14]
[337610300,1725892241630,-3244.0,0.00035616,30]
[337610302,1725892241640,-500.0,0.00035616,14]
[337610304,1725892241650,-500.0,0.00035616,14]
[337610306,1725892241660,-1610.272842,0.00035616,14]
[337610308,1725892241670,-1610.272842,0.00035616,14]
[337610310,1725892241680,-500.0,0.00035616,14]
[337610312,1725892241690,-500.0,0.00035616,14]
[337610314,1725892241700,-1610.272842,0.00035616,14]
[337610316,1725892241710,-1610.272842,0.00035616,14]
[337610318,1725892241720,-500.0,0.00035616,14]
[337610320,1725892241730,-500.0,0.00035616,14]
[337610322,1725892241739,-500.0,0.00035616,14]
[337610324,1725892241749,-500.0,0.00035616,14]
[337610327,1725892241759,-1335.26,0.00035616,14]
[337610329,1725892241775,-525.69215942,0.00035616,14]
[337610331,1725892241785,-500.0,0.00035616,14]
[337610333,1725892241795,-500.0,0.00035616,14]
[337610335,1725892241805,-500.0,0.00035616,14]
[337610337,1725892241814,-1512.04,0.00035616,14]
[337610339,1725892241824,-500.0,0.00035616,14]
[337610341,1725892241833,-500.0,0.00035616,14]
[337610360,1725892242048,-500.0,0.00035616,14]
[337610361,1725892242059,-500.0,0.00035616,14]
[337610362,1725892242068,-500.0,0.00035616,14]
[337610363,1725892242078,-1263.53,0.00035616,7]
[337610364,1725892242088,-597.17,0.00035616,14]
[337610365,1725892242097,-448.34734926,0.00035616,14]
[337610366,1725892242107,-500.0,0.00035616,14]
[337610367,1725892242117,-607.12,0.00035616,14]
[337610368,1725892242130,-500.0,0.00035616,14]
[337610369,1725892242140,-1483.96,0.00035616,14]
[337610370,1725892242149,-500.0,0.00035616,14]
[337610371,1725892242159,-1945.29,0.00035616,14]
[337610372,1725892242169,-500.69436653,0.00035616,14]
[337610373,1725892242178,-500.0,0.00035616,14]
[337610374,1725892242188,-151.0,0.00035616,14]
[337610375,1725892242197,-151.0,0.00035616,14]
[337610377,1725892242207,-500.0,0.00035616,14]
[337610379,1725892242216,-535.72,0.00035616,14]
[337610381,1725892242226,-500.0,0.00035616,14]
[337610382,1725892242235,-1512.23,0.00035616,14]
[337610383,1725892242244,-511.21213967,0.00035616,14]
[337610384,1725892242254,-501.45512182,0.00035616,14]
[337610386,1725892242265,-500.0,0.00035616,14]
[337610388,1725892242279,-500.0,0.00035616,14]
[337610390,1725892242288,-500.0,0.00035616,14]
[337610392,1725892242298,-502.35896847,0.00035616,14]
[337610394,1725892242308,-500.0,0.00035616,14]
[337610396,1725892242319,-500.0,0.00035616,14]
[337610398,1725892242329,-513.66900791,0.00035616,14]
[337610400,1725892242339,-500.0,0.00035616,14]